fUST/lending_fUST_20240908
["ID","MTS","AMOUNT","RATE_DAILY","PERIOD"]
[337526755,1725747032833,-500.0,0.00021917,2]
[337526756,1725747032843,-500.0,0.00021917,2]
[337526757,1725747032852,-500.0,0.00021917,2]
[337526758,1725747032863,-617.43461448,0.00021917,2]
[337526759,1725747032873,-500.0,0.00021917,2]
[337526760,1725747032883,-500.0,0.00021917,2]
[337526761,1725747032893,-500.0,0.00021917,2]
[337526762,1725747032902,-500.0,0.00021917,2]
[337526763,1725747032912,-151.0,0.00021918,7]
[337526764,1725747032921,-151.0,0.00021918,7]
[337526765,1725747032932,-251.778744,0.00021918,7]
[337526766,1725747032941,-151.0,0.00021918,7]
[337526767,1725747032951,-151.0,0.00021918,7]
[337526768,1725747032960,-199.777037,0.00021918,7]
[337526769,1725747032970,-151.0,0.00021918,7]
[337526770,1725747032980,-500.0,0.00021918,2]
[337526771,1725747032990,-500.0,0.00021918,2]
[337526772,1725747033000,-500.0,0.00021918,2]
[337526773,1725747033010,-500.0,0.00021918,2]
[337526774,1725747033020,-500.0,0.00021918,2]
[337526775,1725747033030,-500.0,0.00021918,2]
[337526776,1725747033041,-500.0,0.00021918,2]
[337526777,1725747033051,-500.0,0.00021918,2]
[337526778,1725747033062,-500.0,0.00021918,2]
[337526779,1725747033072,-500.0,0.00021918,2]
[337526780,1725747033083,-500.0,0.00021918,2]
[337526781,1725747033093,-500.0,0.00021918,2]
[337526782,1725747033103,-500.0,0.00021918,2]
[337526783,1725747033112,-500.0,0.00021918,2]
[337526784,1725747033125,-500.0,0.00021918,2]
[337526785,1725747033135,-500.0,0.00021918,2]
[337526786,1725747033145,-500.0,0.00021918,2]
[337526787,1725747033156,-500.0,0.00021918,2]
[337526788,1725747033167,-500.0,0.00021918,2]
[337526789,1725747033176,-500.0,0.00021918,2]
[337526790,1725747033186,-500.0,0.00021918,2]
[337526791,1725747033196,-500.0,0.00021918,2]
[337526792,1725747033206,-500.0,0.00021918,2]
[337526793,1725747033216,-500.0,0.00021918,2]
[337526794,1725747033226,-500.0,0.00021918,2]
[337526795,1725747033236,-500.0,0.00021918,2]
[337526796,1725747033246,-609.05434086,0.00021918,2]
[337526797,1725747033255,-500.0,0.00021918,2]
[337526798,1725747033264,-500.0,0.00021918,2]
[337526799,1725747033274,-500.0,0.00021918,2]
[337526800,1725747033285,-500.0,0.00021918,2]
[337526801,1725747033295,-500.0,0.00021918,2]
[337526802,1725747033305,-500.0,0.00021918,2]
[337526803,1725747033314,-500.0,0.00021918,2]
[337526804,1725747033324,-500.0,0.00021918,2]
[337526805,1725747033334,-500.0,0.00021918,2]
[337526806,1725747033343,-151.0,0.00021958,7]
[337526807,1725747033353,-271.91509449,0.0002205,2]
[337526808,1725747033363,-1000.0,0.00022061,2]
[337526809,1725747033373,-166.373618,0.0002207,7]
[337526810,1725747033383,-163.9284,0.0002207,7]
[337526811,1725747033392,-385.45977104,0.00022098,2]
[337526812,1725747033402,-151.0,0.00022101,7]
[337526813,1725747033413,-733.67,0.00022141,3]
[337526814,1725747033423,-10311.41310911,0.00022151,3]
[337526837,1725747040485,-289.09482828,0.00022098,2]
[337526838,1725747040494,-245.61552126,0.0002215,2]
[337526839,1725747040507,-500.0,0.0002215,2]
[337526840,1725747040516,-500.0,0.0002215,2]
[337526841,1725747040526,-176.17987428,0.0002215,2]
[337526842,1725747040535,-500.0,0.0002215,2]
[337526843,1725747040546,-500.0,0.0002215,2]
[337526844,1725747040556,-500.0,0.0002215,2]
[337526845,1725747040565,-500.0,0.0002215,2]
[337526846,1725747040575,-500.0,0.0002215,2]
[337526847,1725747040584,-500.0,0.0002215,2]
[337526848,1725747040594,-457.81717875,0.0002215,2]
[337526849,1725747040604,-27180.89259741,0.00022151,3]
[337526859,1725747043291,-334.31379464,0.0002205,2]
[337526860,1725747043303,-151.0,0.00022061,7]
[337526861,1725747043313,-151.0,0.0002215,7]
[337526862,1725747043322,-99434.74751648,0.00022151,3]
[337526863,1725747043333,-16789.4563906,0.00022151,3]
[337526864,1725747043343,-151.0,0.00022159,7]
[337526865,1725747043352,-151.0,0.00022161,7]
[337526866,1725747043361,-210.403482,0.00022161,7]
[337526867,1725747043370,-151.0,0.00022161,7]
[337526868,1725747043380,-260.47790544,0.00022173,2]
[337526869,1725747043389,-157.53344572,0.00022173,2]
[337526870,1725747043399,-500.0,0.00022173,2]
[337526871,1725747043409,-161.5,0.00022173,2]
[337526872,1725747043419,-500.80759738,0.00022173,2]
[337526873,1725747043428,-500.0,0.00022173,2]
[337526874,1725747043438,-151.0,0.0002219,7]
[337526875,1725747043448,-271.91509448,0.0002225,2]
[337526876,1725747043457,-500.0,0.00022441,2]
[337526877,1725747043467,-271.91509448,0.0002245,2]
[337526878,1725747043479,-6936.38770036,0.0002259,2]
[337526879,1725747043490,-150.112233,0.000226,4]
[337526880,1725747043502,-271.91509448,0.0002265,2]
[337526881,1725747043514,-150.112233,0.000227,5]
[337526882,1725747043525,-1000.0,0.00022721,2]
[337526883,1725747043534,-150.112233,0.000228,4]
[337526884,1725747043545,-271.91509448,0.0002285,2]
[337526885,1725747043555,-150.112233,0.000229,2]
[337526886,1725747043564,-136927.053223,0.00022951,3]
[337526887,1725747043575,-22385.9418542,0.00022951,3]
[337526888,1725747043584,-500.0,0.0002297,2]
[337526889,1725747043594,-22385.9418542,0.0002298,3]
[337526890,1725747043604,-5596.48546354,0.0002299,3]
[337526891,1725747043614,-59475.247496,0.00023,10]
[337526892,1725747043624,-223.0,0.00023,2]
[337526893,1725747043634,-503.9059761,0.0002347,2]
[337526894,1725747043643,-500.0,0.0002347,2]
[337526895,1725747043652,-500.0,0.0002347,2]
[337526896,1725747043661,-576.6529384,0.00023599,2]
[337526897,1725747043674,-420.0,0.00023687,2]
[337526898,1725747043684,-1000.67734968,0.00023722,2]
[337526899,1725747043693,-150.112233,0.000239,4]
[337526900,1725747043703,-420.0,0.00023972,2]
[337526901,1725747043713,-1001.13917964,0.00024018,2]
[337526902,1725747043723,-150.112233,0.000242,4]
[337526903,1725747043733,-150.112233,0.000244,3]
[337526904,1725747043743,-200.0,0.00024658,15]
[337526905,1725747043753,-380.0,0.00024658,2]
[337526906,1725747043762,-150.112233,0.000247,3]
[337526907,1725747043772,-470.58264692,0.00024779,2]
[337526908,1725747043781,-33578.9127812,0.0002499,3]
[337526909,1725747043791,-97036.7700864,0.00025,2]
[337526910,1725747043804,-30285.14886578,0.00025,2]
[337526944,1725748074205,30000.0,0.0002,2]
[337526945,1725748090853,5000.0,0.00038335,2]
[337526946,1725748122281,8942.76653425,0.00014,2]
[337526947,1725748122312,214.0,0.000195,10]
[337526948,1725748122475,43116.21936691,0.0002,2]
[337526949,1725748123213,39587.57769964,0.0001999,2]
[337526950,1725748125047,4509.13759851,0.00038335,3]
[337526955,1725748139430,5000.0,0.00038335,2]
[337526959,1725748156736,2350.73,0.00038335,2]
[337526975,1725748232474,-1017.62172742,0.00020377,2]
[337526976,1725748232484,-251.0,0.00020822,2]
[337526977,1725748232496,-186.534197,0.00021255,2]
[337526978,1725748232506,-250.0,0.00021817,2]
[337526979,1725748232516,-250.0,0.00021877,2]
[337526980,1725748232526,-250.0,0.00021936,2]
[337526981,1725748232616,-250.0,0.00021996,2]
[337526982,1725748232627,-250.0,0.00022056,2]
[337526983,1725748232638,-250.0,0.00022116,2]
[337526984,1725748232648,-250.0,0.00022172,2]
[337526985,1725748232659,-250.0,0.00022176,2]
[337526986,1725748232668,-215.66049843,0.00022232,2]
[337526987,1725748232680,-828.20825659,0.00022232,2]
[337527015,1725748238391,-323.81791502,0.00022232,2]
[337527029,1725748241176,-1632.31332996,0.00022232,2]
[337527031,1725748241186,-250.0,0.00022236,2]
[337527032,1725748241196,-250.0,0.00022295,2]
[337527033,1725748241205,-171.258469,0.00022337,2]
[337527034,1725748241215,-250.0,0.00022355,2]
[337527035,1725748241224,-250.0,0.00022415,2]
[337527036,1725748241234,-300.0,0.00022434,2]
[337527037,1725748241244,-300.0,0.00022434,2]
[337527038,1725748241254,-8362.64729131,0.00022435,2]
[337527039,1725748241263,-250.0,0.00022475,2]
[337527040,1725748241272,-500.0,0.00022526,2]
[337527041,1725748241281,-500.0,0.00022526,2]
[337527042,1725748241291,-500.0,0.00022526,2]
[337527043,1725748241301,-260.90543409,0.00022526,2]
[337527044,1725748241310,-500.0,0.00022526,2]
[337527045,1725748241320,-500.0,0.00022526,2]
[337527046,1725748241330,-461.74346145,0.00022526,2]
[337527047,1725748241339,-760.7420142,0.00022527,2]
[337527061,1725748243420,-4347.85552816,0.00022527,2]
[337527063,1725748243434,-19791.40245764,0.00022527,2]
[337527064,1725748243444,-250.0,0.00022535,2]
[337527065,1725748243454,-250.0,0.00022595,2]
[337527066,1725748243465,-250.0,0.00022654,2]
[337527067,1725748243474,-250.0,0.00022714,2]
[337527068,1725748243485,-250.0,0.00022774,2]
[337527069,1725748243495,-250.0,0.00022834,2]
[337527070,1725748243507,-57.1733503,0.00022894,2]
[337527071,1725748243520,-192.8266497,0.00022894,2]
[337527072,1725748243530,-250.0,0.00022954,2]
[337527073,1725748243541,-1349.0633503,0.00023,2]
[337527074,1725748243554,-499.78027732,0.00023,2]
[337527075,1725748243566,-9579.97398858,0.00023,2]
[337527076,1725748243575,-327.842,0.00023972,5]
[337527077,1725748243586,-420.0,0.00024367,2]
[337527078,1725748243596,-206.5936382,0.00024658,2]
[337527079,1725748243606,-200.0,0.00024658,15]
[337527080,1725748243618,-420.0,0.00024677,2]
[337527081,1725748243627,-45034.66,0.0002474,3]
[337527082,1725748243639,-500.0,0.00024749,2]
[337527083,1725748243650,-171.93086488,0.00024749,2]
[337527084,1725748243661,-565.06311164,0.00024749,2]
[337527085,1725748243670,-487.53055258,0.00024749,2]
[337527086,1725748243679,-500.0,0.00024749,2]
[337527087,1725748243689,-500.0,0.00024749,2]
[337527088,1725748243699,-500.0,0.00024749,2]
[337527089,1725748243709,-500.0,0.00024749,2]
[337527090,1725748243718,-5218.00816283,0.0002475,2]
[337527091,1725748243729,-10000.0,0.0002475,2]
[337527110,1725748411485,3000.0,0.00019173,2]
[337527111,1725748456118,250.0,0.00019316,2]
[337527112,1725748456334,250.0,0.00019369,2]
[337527113,1725748456567,250.0,0.00019422,2]
[337527114,1725748456803,250.0,0.00019475,2]
[337527115,1725748457041,250.0,0.00019528,2]
[337527116,1725748457243,250.0,0.00019581,2]
[337527117,1725748457465,250.0,0.00019634,2]
[337527118,1725748457760,250.0,0.00019687,2]
[337527119,1725748457884,250.0,0.0001974,2]
[337527120,1725748458099,250.0,0.00019793,2]
[337527121,1725748458313,250.0,0.00019846,2]
[337527122,1725748458526,250.0,0.00019899,2]
[337527123,1725748458947,250.0,0.00019952,2]
[337527124,1725748459160,250.0,0.00020005,2]
[337527131,1725749199317,1092.0,0.00038336,30]
[337527152,1725749432604,-300.0,0.00020092,2]
[337527153,1725749432614,-300.0,0.00020092,2]
[337527154,1725749432624,-941.21344508,0.00020093,2]
[337527156,1725749438615,-2082.21946446,0.00020093,2]
[337527157,1725749438627,-13784.02780848,0.00020093,2]
[337527158,1725749438638,-506.37053554,0.00020093,2]
[337527159,1725749438892,-2840.31324716,0.00020093,2]
[337527169,1725749440787,-4745.85549928,0.00020093,2]
[337527171,1725749440797,-250.0,0.00020714,2]
[337527172,1725749440807,-250.0,0.00020771,2]
[337527174,1725749440816,-251.0,0.00020822,2]
[337527176,1725749440826,-250.0,0.00020827,2]
[337527177,1725749440835,-250.0,0.00020884,2]
[337527178,1725749440846,-250.0,0.00020941,2]
[337527179,1725749440855,-168.8322633,0.00020984,2]
[337527180,1725749440865,-250.0,0.00020998,2]
[337527181,1725749440874,-250.0,0.00021055,2]
[337527182,1725749440884,-250.0,0.00021111,2]
[337527183,1725749440894,-250.0,0.00021168,2]
[337527184,1725749440904,-1058.0699322,0.00021205,2]
[337527185,1725749440915,-250.0,0.00021225,2]
[337527186,1725749440926,-250.0,0.00021282,2]
[337527187,1725749440937,-250.0,0.00021339,2]
[337527188,1725749440948,-162.41594016,0.00021351,2]
[337527189,1725749440959,-7317.31637994,0.00021352,2]
[337527190,1725749440970,-250.0,0.00021396,2]
[337527191,1725749440981,-250.0,0.00021452,2]
[337527192,1725749440992,-250.0,0.00021509,2]
[337527193,1725749441002,-250.0,0.00021566,2]
[337527194,1725749441011,-250.0,0.00021623,2]
[337527195,1725749441021,-250.0,0.0002168,2]
[337527196,1725749441032,-250.0,0.00021737,2]
[337527197,1725749441043,-250.0,0.00021793,2]
[337527198,1725749441054,-420.0,0.00021876,2]
[337527199,1725749441063,-195.65615934,0.00021918,2]
[337527200,1725749441073,-420.0,0.00022102,2]
[337527201,1725749441082,-169.60454,0.00023526,2]
[337527202,1725749441092,-587.0,0.00023819,2]
[337527203,1725749441101,-587.0,0.00024312,2]
[337527204,1725749441110,-182.34904719,0.0002458,2]
[337527205,1725749441119,-1513.70571838,0.00024621,2]
[337527206,1725749441128,-1000.0,0.0002463,2]
[337527207,1725749441138,-262.274,0.0002465,7]
[337527208,1725749441147,-500.0,0.00024669,2]
[337527209,1725749441157,-203.7497461,0.00024669,2]
[337527210,1725749441166,-500.0,0.00024669,2]
[337527211,1725749441175,-579.33330572,0.00024669,2]
[337527212,1725749441186,-173.52420068,0.00024669,2]
[337527213,1725749441195,-500.0,0.00024669,2]
[337527214,1725749441206,-500.0,0.00024669,2]
[337527215,1725749441215,-500.0,0.00024669,2]
[337527216,1725749441225,-500.0,0.00024669,2]
[337527217,1725749441234,-713.89,0.0002467,3]
[337527218,1725749441243,-237.96,0.0002468,3]
[337527219,1725749441253,-37528.89,0.0002468,3]
[337527220,1725749441263,-33265.899082,0.0002468,3]
[337527221,1725749441272,-559.64854644,0.0002468,3]
[337527222,1725749441282,-33265.899082,0.0002469,3]
[337527223,1725749441291,-559.64854644,0.0002469,3]
[337527224,1725749441383,-150.112233,0.000247,3]
[337527225,1725749441394,-150.112233,0.000247,5]
[337527226,1725749441404,-150.112233,0.000247,4]
[337527227,1725749441413,-151.0,0.000247,7]
[337527228,1725749441423,-151.0,0.000247,7]
[337527229,1725749441433,-786.7124825,0.000247,3]
[337527230,1725749441445,-17104.808093,0.000247,3]
[337527231,1725749441456,-1224.70440012,0.000247,3]
[337527232,1725749441476,-19999.86740999,0.000247,3]
[337527235,1725749443555,-1588.95344766,0.000247,3]
[337527236,1725749443569,-15254.89997442,0.000247,3]
[337527239,1725749443646,-466.66475086,0.000247,3]
[337527260,1725749446667,-3832.339943,0.000247,3]
[337527263,1725750003472,171.9840991,0.0001,2]
[337527265,1725750376522,10000.0,0.00023223,62]
[337527312,1725750637930,-300.0,0.00022994,2]
[337527313,1725750637941,-300.0,0.00022994,2]
[337527314,1725750637953,-24900.0,0.00022995,2]
[337527315,1725750637963,-251.0,0.00023027,2]
[337527316,1725750637978,-171.258469,0.00023131,2]
[337527317,1725750637987,-250.0,0.0002342,2]
[337527318,1725750637997,-250.0,0.00023484,2]
[337527319,1725750638006,-250.0,0.00023548,2]
[337527320,1725750638015,-250.0,0.00023612,2]
[337527321,1725750638025,-250.0,0.00023677,2]
[337527322,1725750638034,-250.0,0.00023741,2]
[337527323,1725750638044,-250.0,0.00023805,2]
[337527324,1725750638053,-250.0,0.00023869,2]
[337527325,1725750638064,-250.0,0.00023933,2]
[337527326,1725750638074,-250.0,0.00023998,2]
[337527327,1725750638083,-250.0,0.00024062,2]
[337527328,1725750638093,-250.0,0.00024126,2]
[337527329,1725750638102,-250.0,0.0002419,2]
[337527330,1725750638112,-250.0,0.00024255,2]
[337527331,1725750638122,-250.0,0.00024319,2]
[337527332,1725750638131,-250.0,0.00024383,2]
[337527333,1725750638140,-250.0,0.00024447,2]
[337527334,1725750638150,-250.0,0.00024511,2]
[337527335,1725750638160,-3348.48959159,0.00024514,2]
[337527351,1725750639937,-3054.16224084,0.00024514,2]
[337527352,1725750639946,-250.0,0.00024576,2]
[337527353,1725750639956,-209.819,0.00024598,7]
[337527354,1725750639965,-250.0,0.0002464,2]
[337527355,1725750639975,-1000.0,0.0002464,2]
[337527356,1725750639984,-1362.33514647,0.00024643,2]
[337527357,1725750639994,-1000.0,0.000247,2]
[337527358,1725750640009,-151.096476,0.0002471,7]
[337527359,1725750640027,-475.92,0.0002471,3]
[337527360,1725750640042,-465.27913234,0.00024717,2]
[337527361,1725750640054,-500.0,0.00024719,2]
[337527362,1725750640068,-500.0,0.00024719,2]
[337527363,1725750640083,-500.0,0.00024719,2]
[337527364,1725750640101,-218.96571582,0.00024719,2]
[337527365,1725750640117,-221.20300514,0.00024719,2]
[337527366,1725750640134,-500.0,0.00024719,2]
[337527367,1725750640150,-231.77418677,0.00024719,2]
[337527369,1725750640165,-500.0,0.00024719,2]
[337527371,1725750640178,-500.0,0.00024719,2]
[337527373,1725750640195,-500.0,0.00024719,2]
[337527376,1725750640210,-500.0,0.00024719,2]
[337527378,1725750640227,-8680.08224945,0.0002472,3]
[337527380,1725750640243,-392.16822277,0.0002472,3]
[337527416,1725750645943,-169.60454,0.00023381,2]
[337527417,1725750645956,-283.39546,0.0002472,3]
[337527419,1725750882470,10000.0,0.00023486,62]
[337527422,1725751396486,10000.0,0.00023026,62]
[337527426,1725751686086,5998.76479217,0.00018447,2]
[337527427,1725751692822,3104.50640738,0.000167,2]
[337527433,1725751700663,397.18837279,0.000123,2]
[337527434,1725751702255,4601.02812929,0.0002,2]
[337527435,1725751705403,1000.0,0.0002,2]
[337527436,1725751712165,1996.38488352,0.000176,2]
[337527437,1725751723739,38058.74698092,0.0002,2]
[337527438,1725751724538,20826.97265681,0.0001999,2]
[337527439,1725751724690,192.26180968,0.0002,2]
[337527440,1725751725246,155.8154363,0.0002,2]
[337527441,1725751772138,1000.0,0.00025999,60]
[337527465,1725751831872,-2000.0,0.00023,2]
[337527467,1725751831883,-251.0,0.0002312,2]
[337527469,1725751831894,-300.0,0.00023173,2]
[337527471,1725751831906,-300.0,0.00023173,2]
[337527473,1725751831917,-4280.9,0.00023174,2]
[337527499,1725751837949,-11356.90806997,0.00023174,2]
[337527500,1725751837962,-9262.19193003,0.00023174,2]
[337527501,1725751837971,-250.0,0.00023533,2]
[337527502,1725751837981,-250.0,0.00023598,2]
[337527503,1725751837991,-250.0,0.00023662,2]
[337527504,1725751838000,-250.0,0.00023727,2]
[337527505,1725751838010,-250.0,0.00023791,2]
[337527506,1725751838020,-250.0,0.00023856,2]
[337527507,1725751838031,-250.0,0.0002392,2]
[337527508,1725751838041,-250.0,0.00023985,2]
[337527509,1725751838050,-250.0,0.00024049,2]
[337527510,1725751838060,-250.0,0.00024114,2]
[337527511,1725751838069,-5602.32035335,0.0002414,2]
[337527512,1725751838079,-250.0,0.00024178,2]
[337527513,1725751838089,-1000.0,0.000242,2]
[337527514,1725751838098,-250.0,0.00024243,2]
[337527515,1725751838108,-250.0,0.00024308,2]
[337527516,1725751838118,-250.0,0.00024372,2]
[337527517,1725751838127,-250.0,0.00024437,2]
[337527518,1725751838137,-955.20827168,0.00024478,2]
[337527519,1725751838149,-618.00417165,0.00024478,2]
[337527520,1725751838292,-463.60802538,0.00024478,2]
[337527543,1725751840194,-1082.26655947,0.00024478,2]
[337527544,1725751840205,-250.0,0.00024501,2]
[337527545,1725751840215,-250.0,0.00024566,2]
[337527546,1725751840227,-1000.0,0.0002459,2]
[337527547,1725751840238,-1226.10163185,0.00024599,2]
[337527548,1725751840247,-167.855,0.0002463,7]
[337527549,1725751840335,-250.0,0.0002463,2]
[337527550,1725751840347,-465.01395662,0.00024655,2]
[337527551,1725751840357,-24101.86,0.0002466,3]
[337527552,1725751840368,-20084.89,0.0002466,3]
[337527553,1725751840379,-495.23,0.0002466,3]
[337527554,1725751840390,-206.71462656,0.00024669,2]
[337527555,1725751840400,-500.0,0.00024669,2]
[337527556,1725751840410,-500.0,0.00024669,2]
[337527557,1725751840419,-650.92737917,0.00024669,2]
[337527558,1725751840430,-500.0,0.00024669,2]
[337527559,1725751840439,-179.65734886,0.00024669,2]
[337527560,1725751840449,-500.0,0.00024669,2]
[337527561,1725751840459,-500.0,0.00024669,2]
[337527562,1725751840470,-500.0,0.00024669,2]
[337527563,1725751840480,-500.0,0.00024669,2]
[337527564,1725751840492,-15160.87224239,0.0002467,3]
[337527603,1725751895259,10000.0,0.00023647,62]
[337528845,1725752400282,2501.6417889,0.00022733,62]
[337528847,1725752486834,10000.0,0.00038397,30]
[337528848,1725752493996,10000.0,0.00038397,30]
[337528849,1725752548134,10000.0,0.00038397,30]
[337528850,1725752556340,10000.0,0.00038397,30]
[337528851,1725752562628,10000.0,0.00038397,30]
[337528852,1725752570948,10000.0,0.00038397,30]
[337528853,1725752598600,644.0,0.00038397,30]
[337528854,1725752727774,499.27,0.00038397,30]
[337528892,1725753032238,-169.60454,0.0002173,2]
[337528895,1725753032316,-251.0,0.00021831,2]
[337528896,1725753032326,-300.0,0.00021987,2]
[337528897,1725753032335,-300.0,0.00021987,2]
[337528898,1725753032345,-2932.23545749,0.00021988,2]
[337528906,1725753038365,-21967.76454251,0.00021988,2]
[337528907,1725753038375,-250.0,0.00022458,2]
[337528908,1725753038385,-250.0,0.00022519,2]
[337528909,1725753038394,-250.0,0.00022581,2]
[337528910,1725753038404,-250.0,0.00022643,2]
[337528911,1725753038413,-250.0,0.00022704,2]
[337528912,1725753038422,-250.0,0.00022766,2]
[337528913,1725753038431,-250.0,0.00022827,2]
[337528914,1725753038504,-250.0,0.00022889,2]
[337528915,1725753038514,-250.0,0.00022951,2]
[337528916,1725753038525,-250.0,0.00023012,2]
[337528917,1725753038535,-250.0,0.00023074,2]
[337528918,1725753038545,-250.0,0.00023135,2]
[337528919,1725753038555,-250.0,0.00023197,2]
[337528920,1725753038566,-250.0,0.00023258,2]
[337528921,1725753038576,-3131.80258045,0.000233,3]
[337528922,1725753038588,-267.90841955,0.000233,3]
[337528923,1725753038597,-167.855,0.00023308,3]
[337528924,1725753038606,-2000.0,0.00023308,2]
[337528925,1725753038619,-250.0,0.0002332,2]
[337528926,1725753038630,-171.258469,0.00023373,2]
[337528927,1725753038640,-250.0,0.00023382,2]
[337528928,1725753038655,-250.0,0.00023443,2]
[337528929,1725753038665,-250.0,0.00023505,2]
[337528930,1725753038675,-250.0,0.00023566,2]
[337528931,1725753038685,-3000.0,0.00023626,2]
[337528932,1725753038693,-250.0,0.00023628,2]
[337528933,1725753038703,-2750.0,0.0002374,2]
[337528934,1725753038712,-420.0,0.00023893,2]
[337528935,1725753038724,-420.0,0.00024186,2]
[337528936,1725753038736,-1082.26655947,0.00024425,2]
[337528937,1725753038745,-168.05510299,0.0002455,2]
[337528938,1725753038754,-1000.0,0.0002455,2]
[337528939,1725753038763,-1226.10163185,0.00024559,2]
[337528940,1725753038772,-168.05510299,0.00024559,2]
[337528941,1725753038781,-495.23,0.0002463,3]
[337528942,1725753038790,-206.71462656,0.00024639,2]
[337528943,1725753038799,-500.0,0.00024639,2]
[337528944,1725753038809,-500.0,0.00024639,2]
[337528945,1725753038819,-302.02802055,0.00024639,2]
[337528946,1725753038828,-500.0,0.00024639,2]
[337528947,1725753038838,-500.0,0.00024639,2]
[337528948,1725753038848,-487.96856934,0.00024639,2]
[337528949,1725753038858,-500.0,0.00024639,2]
[337528950,1725753038868,-500.0,0.00024639,2]
[337528951,1725753038877,-500.0,0.00024639,2]
[337528952,1725753038887,-400.0,0.00024639,2]
[337528953,1725753038896,-44452.88463367,0.0002464,3]
[337528954,1725753038908,-2100.1585138,0.0002464,3]
[337528955,1725753038920,-2431.45569865,0.0002464,3]
[337528965,1725753040322,-3391.76335903,0.0002464,3]
[337528966,1725753040420,-69071.38874492,0.0002464,3]
[337528967,1725753040438,-728.23,0.0002464,3]
[337529022,1725753231671,530.0,0.00038399,30]
[337529050,1725754232311,-171.258469,0.00022217,2]
[337529052,1725754232321,-105.06032954,0.00022437,2]
[337529093,1725754238504,-194.93967046,0.00022437,2]
[337529095,1725754238514,-300.0,0.00022437,2]
[337529097,1725754238523,-24900.0,0.00022438,2]
[337529099,1725754238533,-2344.3639348,0.00022458,2]
[337529101,1725754238542,-251.0,0.00023093,2]
[337529103,1725754238552,-167.856,0.0002332,3]
[337529105,1725754238562,-250.0,0.00023335,2]
[337529107,1725754238571,-250.0,0.00023399,2]
[337529108,1725754238581,-250.0,0.00023463,2]
[337529109,1725754238590,-250.0,0.00023527,2]
[337529110,1725754238599,-250.0,0.00023591,2]
[337529111,1725754238608,-250.0,0.00023655,2]
[337529112,1725754238618,-250.0,0.00023719,2]
[337529113,1725754238627,-250.0,0.00023783,2]
[337529114,1725754238637,-250.0,0.00023847,2]
[337529115,1725754238646,-250.0,0.00023911,2]
[337529116,1725754238655,-250.0,0.00023975,2]
[337529117,1725754238665,-250.0,0.00024039,2]
[337529118,1725754238674,-250.0,0.00024103,2]
[337529119,1725754238683,-250.0,0.00024167,2]
[337529120,1725754238692,-250.0,0.00024231,2]
[337529121,1725754238701,-250.0,0.00024295,2]
[337529122,1725754238711,-250.0,0.00024359,2]
[337529123,1725754238720,-223.03162932,0.00024422,2]
[337529124,1725754238729,-250.0,0.00024423,2]
[337529125,1725754238739,-250.0,0.00024487,2]
[337529126,1725754238748,-715.72299589,0.00024501,2]
[337529127,1725754238759,-1000.0,0.0002451,2]
[337529128,1725754238768,-1263.6795624,0.00024541,2]
[337529129,1725754238778,-250.0,0.00024551,2]
[337529130,1725754238787,-465.01395662,0.00024594,2]
[337529131,1725754238797,-500.0,0.00024599,2]